fUSD/lending_fUSD_20240412
["ID","MTS","AMOUNT","RATE_DAILY","PERIOD"]
[322346925,1712957455171,-500.0,0.00046849,2]
[322346926,1712957455181,-1314.87,0.00046849,31]
[322346927,1712957455193,-500.0,0.00046849,31]
[322346928,1712957455207,-2386.04,0.00046849,31]
[322346929,1712957455217,-500.0,0.00046849,31]
[322346930,1712957455228,-756.86,0.00046849,31]
[322346931,1712957455238,-1550.59,0.00046849,31]
[322346932,1712957455249,-734.62,0.00046849,31]
[322346933,1712957455259,-500.0,0.00046849,31]
[322346934,1712957455270,-151.0,0.00046849,14]
[322346935,1712957455280,-500.0,0.00046849,31]
[322346936,1712957455292,-500.0,0.00046849,31]
[322346937,1712957455302,-500.0,0.00046849,31]
[322346938,1712957455313,-500.0,0.00046849,31]
[322346939,1712957455324,-500.0,0.00046849,31]
[322346940,1712957455336,-1111.77,0.00046849,31]
[322346941,1712957455348,-759.91,0.00046849,31]
[322346942,1712957455358,-500.0,0.00046849,31]
[322346943,1712957455370,-500.0,0.00046849,31]
[322346944,1712957455381,-151.0,0.00046849,7]
[322346945,1712957455393,-500.0,0.00046849,31]
[322346946,1712957455403,-500.0,0.00046849,31]
[322346947,1712957455415,-500.0,0.00046849,31]
[322346948,1712957455425,-500.0,0.00046849,31]
[322346949,1712957455436,-500.0,0.00046849,31]
[322346950,1712957455447,-456.98925875,0.00046849,31]
[322346951,1712957455457,-646.49,0.00046849,31]
[322346952,1712957455468,-418.41,0.00046849,31]
[322346953,1712957455479,-500.0,0.00046849,31]
[322346954,1712957455490,-500.0,0.00046849,31]
[322346955,1712957455500,-515.55,0.00046849,31]
[322346956,1712957455511,-497.61100845,0.00046849,31]
[322346957,1712957455522,-728.38,0.00046849,31]
[322346958,1712957455532,-6651.28,0.00046849,31]
[322346959,1712957455544,-802.85,0.00046849,31]
[322346960,1712957455554,-286.37,0.00046849,31]
[322346961,1712957455565,-2000.55,0.00046849,31]
[322346962,1712957455575,-571.02,0.00046849,31]
[322346963,1712957455586,-566.71,0.00046849,31]
[322346964,1712957455597,-374.86,0.00046849,31]
[322346965,1712957455607,-1851.765198,0.00046849,14]
[322346966,1712957455619,-500.0,0.00046849,31]
[322346967,1712957455629,-316.48200968,0.00046883,2]
[322346968,1712957455641,-660.21,0.00046922,30]
[322346969,1712957455656,-154.98813121,0.00046934,30]
[322346970,1712957455667,-152.26,0.00046967,2]
[322346971,1712957455679,-1000.0,0.00047,2]
[322346972,1712957455691,-1271.43065494,0.00047,31]
[322346973,1712957455703,-900.0,0.00047,3]
[322346974,1712957455715,-150.0,0.00047,9]
[322346975,1712957455725,-300.0,0.00047023,2]
[322346976,1712957455739,-268.549,0.00047023,2]
[322346977,1712957455750,-151.0,0.0004712,14]
[322346978,1712957455760,-151.0,0.0004712,14]
[322346979,1712957455770,-151.0,0.0004712,14]
[322346980,1712957455781,-151.0,0.0004712,14]
[322346981,1712957455793,-151.0,0.0004712,14]
[322346982,1712957455804,-151.0,0.0004712,2]
[322346983,1712957455814,-151.0,0.0004712,14]
[322346984,1712957455825,-151.0,0.0004712,14]
[322346985,1712957455836,-151.0,0.0004712,14]
[322346986,1712957455846,-151.0,0.0004712,14]
[322346987,1712957455857,-151.0,0.0004712,14]
[322346988,1712957455868,-207.133645,0.0004712,14]
[322346989,1712957455879,-151.0,0.0004712,14]
[322346990,1712957455890,-207.133645,0.0004712,14]
[322346991,1712957455901,-207.56744,0.0004712,14]
[322346992,1712957455913,-151.0,0.0004712,14]
[322346993,1712957455925,-151.0,0.0004712,14]
[322346994,1712957455936,-151.0,0.0004712,14]
[322346995,1712957455948,-229.46,0.00047123,2]
[322346996,1712957455959,-500.0,0.00047123,31]
[322346997,1712957455969,-500.0,0.00047123,31]
[322346998,1712957455979,-500.0,0.00047123,31]
[322346999,1712957455990,-500.0,0.00047123,31]
[322347000,1712957456001,-500.0,0.00047123,31]
[322347001,1712957456011,-500.0,0.00047123,31]
[322347002,1712957456021,-500.0,0.00047123,31]
[322347003,1712957456032,-523.34,0.00047123,31]
[322347004,1712957456044,-500.0,0.00047123,31]
[322347005,1712957456055,-449.36897697,0.00047123,31]
[322347006,1712957456066,-500.0,0.00047123,31]
[322347007,1712957456077,-500.0,0.00047123,31]
[322347008,1712957456089,-500.0,0.00047123,31]
[322347009,1712957456100,-500.0,0.00047123,31]
[322347010,1712957456111,-500.0,0.00047123,31]
[322347011,1712957456121,-500.0,0.00047123,31]
[322347012,1712957456132,-500.0,0.00047123,31]
[322347013,1712957456142,-500.0,0.00047123,31]
[322347014,1712957456153,-500.0,0.00047123,31]
[322347015,1712957456164,-500.0,0.00047123,31]
[322347016,1712957456175,-564.56510251,0.00047123,31]
[322347017,1712957456185,-500.0,0.00047123,31]
[322347018,1712957456196,-500.0,0.00047123,31]
[322347019,1712957456206,-500.0,0.00047123,31]
[322347020,1712957456217,-500.0,0.00047123,31]
[322347021,1712957456228,-500.0,0.00047123,31]
[322347022,1712957456238,-500.0,0.00047123,31]
[322347023,1712957456249,-500.0,0.00047123,31]
[322347024,1712957456259,-500.0,0.00047123,31]
[322347025,1712957456271,-500.0,0.00047123,31]
[322347026,1712957456282,-500.0,0.00047123,31]
[322347027,1712957456295,-500.0,0.00047123,31]
[322347028,1712957456306,-500.0,0.00047123,31]
[322347029,1712957456317,-500.0,0.00047123,31]
[322347030,1712957456339,-500.0,0.00047123,31]
[322347031,1712957456350,-500.0,0.00047123,31]
[322347032,1712957456359,-500.0,0.00047123,31]
[322347033,1712957456368,-500.0,0.00047123,31]
[322347034,1712957456377,-500.0,0.00047123,31]
[322347035,1712957456386,-500.0,0.00047123,31]
[322347036,1712957456395,-500.0,0.00047123,31]
[322347037,1712957456406,-528.46,0.00047123,31]
[322347038,1712957456416,-613.29,0.00047123,31]
[322347039,1712957456428,-373.95,0.00047123,31]
[322347040,1712957456437,-500.0,0.00047123,31]
[322347041,1712957456446,-500.0,0.00047123,31]
[322347042,1712957456772,-500.0,0.00047123,31]
[322347043,1712957456796,-500.0,0.00047123,2]
[322347044,1712957456815,-500.0,0.00047123,31]
[322347045,1712957456824,-500.0,0.00047123,31]
[322347046,1712957456834,-248.1996861,0.00047123,31]
[322347047,1712957456843,-506.96302797,0.00047123,31]
[322347048,1712957456853,-500.0,0.00047123,31]
[322347049,1712957456862,-500.0,0.00047123,31]
[322347050,1712957456871,-500.0,0.00047123,31]
[322347051,1712957456880,-500.0,0.00047123,31]
[322347052,1712957456889,-158.61329308,0.00047123,31]
[322347053,1712957456898,-500.0,0.00047123,30]
[322347054,1712957456907,-554.03,0.00047123,31]
[322347055,1712957456916,-500.0,0.00047123,31]
[322347056,1712957456926,-500.0,0.00047123,31]
[322347057,1712957456935,-500.0,0.00047123,31]
[322347058,1712957456945,-500.0,0.00047123,31]
[322347059,1712957456955,-500.0,0.00047123,31]
[322347060,1712957456964,-500.0,0.00047123,31]
[322347061,1712957456973,-500.0,0.00047123,31]
[322347062,1712957456983,-500.0,0.00047123,31]
[322347063,1712957456992,-500.0,0.00047123,31]
[322347064,1712957457001,-500.0,0.00047123,31]
[322347065,1712957457011,-500.0,0.00047123,31]
[322347066,1712957457020,-500.0,0.00047123,31]
[322347067,1712957457029,-500.0,0.00047123,31]
[322347068,1712957457038,-500.0,0.00047123,31]
[322347069,1712957457047,-500.0,0.00047123,31]
[322347070,1712957457056,-500.0,0.00047123,31]
[322347071,1712957457065,-500.0,0.00047123,31]
[322347072,1712957457075,-500.0,0.00047123,31]
[322347073,1712957457083,-500.0,0.00047123,31]
[322347074,1712957457093,-500.0,0.00047123,31]
[322347075,1712957457103,-500.0,0.00047123,31]
[322347076,1712957457112,-500.0,0.00047123,31]
[322347077,1712957457121,-500.0,0.00047123,31]
[322347078,1712957457130,-500.0,0.00047123,31]
[322347079,1712957457139,-500.0,0.00047123,31]
[322347080,1712957457148,-500.0,0.00047123,31]
[322347081,1712957457157,-500.0,0.00047123,31]
[322347082,1712957457166,-500.0,0.00047123,31]
[322347083,1712957457175,-500.0,0.00047123,31]
[322347084,1712957457184,-500.0,0.00047123,7]
[322347085,1712957457193,-500.0,0.00047123,31]
[322347086,1712957457203,-500.0,0.00047123,31]
[322347087,1712957457213,-500.0,0.00047123,31]
[322347088,1712957457223,-500.0,0.00047123,31]
[322347089,1712957457232,-500.0,0.00047123,31]
[322347090,1712957457241,-500.0,0.00047123,31]
[322347091,1712957457252,-500.0,0.00047123,31]
[322347092,1712957457261,-500.0,0.00047123,31]
[322347093,1712957457270,-500.0,0.00047123,31]
[322347094,1712957457279,-500.0,0.00047123,31]
[322347095,1712957457289,-500.0,0.00047123,31]
[322347096,1712957457299,-500.0,0.00047123,31]
[322347097,1712957457308,-500.0,0.00047123,31]
[322347098,1712957457318,-500.0,0.00047123,31]
[322347099,1712957457327,-500.0,0.00047123,31]
[322347100,1712957457336,-444.72,0.00047123,31]
[322347101,1712957457345,-500.0,0.00047123,31]
[322347102,1712957457354,-500.0,0.00047123,31]
[322347103,1712957457363,-500.0,0.00047123,31]
[322347104,1712957457373,-500.0,0.00047123,31]
[322347105,1712957457381,-500.0,0.00047123,31]
[322347106,1712957457392,-567.14,0.00047123,31]
[322347107,1712957457402,-500.0,0.00047123,31]
[322347108,1712957457411,-500.0,0.00047123,31]
[322347109,1712957457420,-455.38,0.00047123,31]
[322347110,1712957457431,-500.0,0.00047123,31]
[322347111,1712957457440,-500.0,0.00047123,31]
[322347112,1712957457449,-500.0,0.00047123,31]
[322347113,1712957457458,-404.27,0.00047123,31]
[322347114,1712957457468,-500.0,0.00047123,31]
[322347115,1712957457477,-500.0,0.00047123,31]
[322347116,1712957457485,-500.0,0.00047123,31]
[322347117,1712957457495,-500.0,0.00047123,31]
[322347118,1712957457504,-500.0,0.00047123,31]
[322347119,1712957457514,-500.0,0.00047123,31]
[322347120,1712957457523,-500.0,0.00047123,31]
[322347121,1712957457532,-500.0,0.00047123,31]
[322347122,1712957457542,-500.0,0.00047123,31]
[322347123,1712957457551,-500.0,0.00047123,31]
[322347124,1712957457560,-500.0,0.00047123,2]
[322347125,1712957457570,-500.0,0.00047123,31]
[322347126,1712957457579,-500.0,0.00047123,31]
[322347127,1712957457588,-500.0,0.00047123,31]
[322347128,1712957457598,-150.0,0.00047123,31]
[322347129,1712957457607,-500.0,0.00047123,31]
[322347130,1712957457617,-500.0,0.00047123,31]
[322347131,1712957457626,-500.0,0.00047123,31]
[322347132,1712957457634,-500.0,0.00047123,31]
[322347133,1712957457643,-500.0,0.00047123,31]
[322347134,1712957457653,-500.0,0.00047123,31]
[322347135,1712957457662,-500.0,0.00047123,31]
[322347136,1712957457673,-500.0,0.00047123,31]
[322347137,1712957457682,-151.0,0.00047123,14]
[322347138,1712957457691,-669.77,0.00047123,31]
[322347139,1712957457701,-500.0,0.00047123,31]
[322347140,1712957457710,-500.0,0.00047123,31]
[322347141,1712957457719,-151.0,0.00047123,14]
[322347142,1712957457729,-401.453005,0.00047123,31]
[322347143,1712957457738,-199.032944,0.00047123,14]
[322347144,1712957457748,-151.0,0.00047123,14]
[322347145,1712957457758,-500.0,0.00047123,31]
[322347146,1712957457767,-199.032944,0.00047123,14]
[322347147,1712957457776,-500.0,0.00047123,31]
[322347148,1712957457786,-479.4,0.00047123,31]
[322347149,1712957457796,-500.0,0.00047123,31]
[322347150,1712957457805,-151.0,0.00047123,14]
[322347151,1712957457814,-500.0,0.00047123,31]
[322347152,1712957457823,-151.0,0.00047123,14]
[322347153,1712957457833,-151.0,0.00047123,14]
[322347154,1712957457842,-500.0,0.00047123,31]
[322347155,1712957457851,-243.8982,0.00047123,14]
[322347156,1712957457861,-500.0,0.00047123,31]
[322347157,1712957457871,-155.796017,0.00047123,14]
[322347158,1712957457881,-570.88,0.00047123,31]
[322347159,1712957457890,-500.0,0.00047123,31]
[322347160,1712957457899,-500.0,0.00047123,31]
[322347161,1712957457909,-680.37,0.00047123,31]
[322347162,1712957457918,-500.0,0.00047123,31]
[322347163,1712957457928,-500.0,0.00047123,31]
[322347164,1712957457937,-500.0,0.00047123,31]
[322347165,1712957457947,-240.384444,0.00047123,14]
[322347166,1712957457957,-3763.83,0.00047123,31]
[322347167,1712957457966,-240.384444,0.00047123,14]
[322347168,1712957457975,-500.0,0.00047123,31]
[322347169,1712957457985,-500.0,0.00047123,31]
[322347170,1712957457994,-500.0,0.00047123,31]
[322347171,1712957458003,-500.0,0.00047123,31]
[322347172,1712957458012,-500.0,0.00047123,31]
[322347173,1712957458021,-500.0,0.00047123,31]
[322347174,1712957458030,-151.0,0.00047123,14]
[322347175,1712957458040,-151.0,0.00047123,14]
[322347176,1712957458049,-704.996264,0.00047123,14]
[322347177,1712957458059,-151.0,0.00047123,14]
[322347178,1712957458068,-500.0,0.00047123,31]
[322347179,1712957458078,-500.0,0.00047123,31]
[322347180,1712957458087,-784.68,0.00047123,31]
[322347181,1712957458097,-704.996264,0.00047123,14]
[322347182,1712957458106,-500.0,0.00047123,31]
[322347183,1712957458115,-151.0,0.00047123,14]
[322347184,1712957458125,-500.0,0.00047123,31]
[322347185,1712957458134,-500.0,0.00047123,31]
[322347186,1712957458143,-993.51,0.00047123,31]
[322347187,1712957458153,-151.0,0.00047123,14]
[322347188,1712957458163,-500.0,0.00047123,31]
[322347189,1712957458173,-500.0,0.00047123,31]
[322347190,1712957458182,-500.0,0.00047123,31]
[322347191,1712957458193,-500.0,0.00047123,31]
[322347192,1712957458203,-176.971607,0.00047123,14]
[322347193,1712957458214,-151.0,0.00047123,14]
[322347194,1712957458225,-151.0,0.00047123,14]
[322347195,1712957458234,-500.0,0.00047123,31]
[322347196,1712957458243,-500.0,0.00047123,31]
[322347197,1712957458256,-176.971607,0.00047123,14]
[322347198,1712957458265,-1283.24,0.00047123,31]
[322347199,1712957458275,-500.0,0.00047123,31]
[322347200,1712957458285,-500.0,0.00047123,31]
[322347201,1712957458295,-7701.29,0.00047123,31]
[322347202,1712957458304,-151.0,0.00047123,14]
[322347203,1712957458314,-509.87,0.00047123,31]
[322347204,1712957458323,-500.0,0.00047123,31]
[322347205,1712957458332,-743.53,0.00047123,31]
[322347206,1712957458342,-500.0,0.00047123,31]
[322347207,1712957458351,-663.59,0.00047123,31]
[322347208,1712957458361,-151.0,0.00047123,14]
[322347209,1712957458371,-192.56336869,0.00047123,31]
[322347210,1712957458381,-500.0,0.00047123,31]
[322347211,1712957458390,-500.0,0.00047123,31]
[322347212,1712957458400,-765.19,0.00047123,31]
[322347213,1712957458409,-1210.95,0.00047123,31]
[322347214,1712957458418,-151.0,0.00047123,14]
[322347215,1712957458428,-500.0,0.00047123,31]
[322347216,1712957458438,-1079.61663096,0.00047123,31]
[322347217,1712957458712,-136.17336904,0.00047123,31]
[322347218,1712957458722,-500.0,0.00047123,31]
[322347219,1712957458732,-500.0,0.00047123,31]
[322347220,1712957458742,-2444.29,0.00047123,31]
[322347221,1712957458752,-500.0,0.00047123,31]
[322347222,1712957458762,-782.13,0.00047123,31]
[322347223,1712957458771,-862.16,0.00047123,31]
[322347224,1712957458780,-500.0,0.00047123,7]
[322347225,1712957458790,-368.27048892,0.00047123,31]
[322347226,1712957458800,-639.92,0.00047123,31]
[322347227,1712957458810,-500.0,0.00047123,31]
[322347228,1712957458820,-500.0,0.00047123,31]
[322347229,1712957458830,-500.0,0.00047123,31]
[322347230,1712957458839,-500.0,0.00047123,31]
[322347231,1712957458849,-517.0,0.00047123,31]
[322347232,1712957458859,-500.0,0.00047123,31]
[322347233,1712957458868,-552.86,0.00047123,31]
[322347234,1712957458877,-3415.58,0.00047123,31]
[322347235,1712957458887,-500.0,0.00047123,31]
[322347236,1712957458896,-500.0,0.00047123,31]
[322347237,1712957458905,-379.97,0.00047123,31]
[322347238,1712957458914,-500.0,0.00047123,31]
[322347239,1712957458923,-500.0,0.00047123,31]
[322347240,1712957458932,-888.25,0.00047123,31]
[322347241,1712957458942,-500.0,0.00047123,31]
[322347242,1712957458951,-622.98,0.00047123,31]
[322347243,1712957458961,-7197.97,0.00047123,31]
[322347244,1712957458970,-973.32,0.00047123,31]
[322347245,1712957458979,-524.96590322,0.00047123,31]
[322347246,1712957458988,-1090.18,0.00047123,31]
[322347247,1712957458998,-613.64,0.00047123,31]
[322347248,1712957459007,-500.0,0.00047123,31]
[322347249,1712957459016,-893.69,0.00047123,31]
[322347250,1712957459026,-508.05,0.00047123,31]
[322347251,1712957459036,-500.0,0.00047123,31]
[322347252,1712957459046,-658.26,0.00047123,31]
[322347253,1712957459055,-500.0,0.00047123,31]
[322347254,1712957459064,-704.21,0.00047123,31]
[322347255,1712957459074,-500.0,0.00047123,31]
[322347256,1712957459083,-500.0,0.00047123,31]
[322347257,1712957459092,-500.0,0.00047123,5]
[322347258,1712957459102,-500.0,0.00047123,31]
[322347259,1712957459111,-896.94,0.00047123,31]
[322347260,1712957459121,-500.0,0.00047123,31]
[322347261,1712957459130,-2564.38,0.00047123,31]
[322347262,1712957459139,-500.0,0.00047123,31]
[322347263,1712957459148,-500.0,0.00047123,31]
[322347264,1712957459157,-187.33670144,0.00047123,31]
[322347265,1712957459167,-649.25,0.00047123,31]
[322347266,1712957459176,-500.0,0.00047123,31]
[322347267,1712957459185,-701.3,0.00047123,31]
[322347268,1712957459194,-1428.8,0.00047123,31]
[322347269,1712957459203,-1707.62,0.00047123,21]
[322347270,1712957459213,-500.0,0.00047123,31]
[322347271,1712957459224,-500.0,0.00047123,31]
[322347272,1712957459233,-500.0,0.00047123,31]
[322347273,1712957459242,-2220.22,0.00047123,31]
[322347274,1712957459252,-500.0,0.00047123,31]
[322347275,1712957459261,-500.0,0.00047123,31]
[322347276,1712957459271,-2569.48,0.00047123,31]
[322347277,1712957459280,-500.0,0.00047123,31]
[322347278,1712957459290,-292.69,0.00047123,31]
[322347279,1712957459300,-500.0,0.00047123,31]
[322347280,1712957459309,-1323.83,0.00047123,31]
[322347281,1712957459318,-576.61,0.00047123,31]
[322347282,1712957459327,-667.54,0.00047123,31]
[322347283,1712957459336,-500.0,0.00047123,31]
[322347284,1712957459346,-528.73,0.00047123,31]
[322347285,1712957459355,-1075.46,0.00047123,31]
[322347286,1712957459364,-500.0,0.00047123,31]
[322347287,1712957459372,-500.0,0.00047123,31]
[322347288,1712957459382,-661.11,0.00047123,31]
[322347289,1712957459391,-500.0,0.00047123,31]
[322347290,1712957459400,-622.4,0.00047123,31]
[322347291,1712957459409,-500.0,0.00047123,31]
[322347292,1712957459418,-1849.96,0.00047123,31]
[322347293,1712957459428,-500.0,0.00047123,31]
[322347294,1712957459439,-568.2,0.00047123,31]
[322347295,1712957459448,-1187.59,0.00047123,31]
[322347296,1712957459457,-500.0,0.00047123,31]
[322347297,1712957459466,-239.44616573,0.00047123,31]
[322347298,1712957459476,-612.21,0.00047123,31]
[322347299,1712957459485,-500.0,0.00047123,31]
[322347300,1712957459494,-771.23,0.00047123,31]
[322347301,1712957459503,-500.0,0.00047123,31]
[322347302,1712957459513,-1000.0,0.00047123,31]
[322347303,1712957459522,-500.0,0.00047123,31]
[322347304,1712957459531,-1058.3,0.00047123,31]
[322347305,1712957459542,-500.0,0.00047123,31]
[322347306,1712957459551,-500.0,0.00047123,31]
[322347307,1712957459559,-810.03,0.00047123,31]
[322347308,1712957459568,-500.0,0.00047123,31]
[322347309,1712957459578,-500.0,0.00047123,31]
[322347310,1712957459587,-500.0,0.00047123,31]
[322347311,1712957459597,-1217.51,0.00047123,31]
[322347312,1712957459606,-500.0,0.00047123,31]
[322347313,1712957459615,-500.0,0.00047123,31]
[322347314,1712957459625,-1110.81,0.00047123,31]
[322347315,1712957459635,-1069.94,0.00047123,31]
[322347316,1712957459646,-716.23,0.00047123,31]
[322347317,1712957459656,-500.0,0.00047123,31]
[322347318,1712957459830,-500.0,0.00047123,31]
[322347319,1712957459850,-500.0,0.00047123,31]
[322347320,1712957459859,-1314.87,0.00047123,31]
[322347321,1712957459870,-500.0,0.00047123,31]
[322347322,1712957459880,-2386.04,0.00047123,31]
[322347323,1712957459889,-151.66,0.00047123,31]
[322347324,1712957459899,-756.86,0.00047123,31]
[322347325,1712957459908,-1550.59,0.00047123,31]
[322347326,1712957459919,-734.62,0.00047123,31]
[322347327,1712957459929,-164.08,0.00047123,31]
[322347328,1712957459939,-500.0,0.00047123,31]
[322347329,1712957459949,-500.0,0.00047123,31]
[322347330,1712957459959,-500.0,0.00047123,31]
[322347331,1712957459969,-500.0,0.00047123,31]
[322347332,1712957459979,-592.2,0.00047123,31]
[322347333,1712957459988,-1111.77,0.00047123,31]
[322347334,1712957459998,-759.91,0.00047123,31]
[322347335,1712957460007,-500.0,0.00047123,31]
[322347336,1712957460018,-500.0,0.00047123,31]
[322347337,1712957460030,-500.0,0.00047123,31]
[322347338,1712957460041,-549.1,0.00047123,31]
[322347339,1712957460051,-376.38,0.00047123,31]
[322347340,1712957460062,-500.0,0.00047123,31]
[322347341,1712957460072,-646.49,0.00047123,31]
[322347342,1712957460083,-500.0,0.00047123,31]
[322347343,1712957460093,-515.55,0.00047123,31]
[322347344,1712957460102,-728.38,0.00047123,31]
[322347345,1712957460112,-6651.28,0.00047123,31]
[322347346,1712957460122,-802.85,0.00047123,31]
[322347347,1712957460131,-571.02,0.00047123,31]
[322347348,1712957460140,-2000.55,0.00047123,31]
[322347349,1712957460150,-566.71,0.00047123,31]
[322347350,1712957460159,-525.54,0.00047397,31]
[322347351,1712957460168,-298.52,0.00047397,31]
[322347352,1712957460178,-503.52,0.00047397,31]
[322347353,1712957460187,-500.0,0.00047397,31]
[322347354,1712957460196,-500.0,0.00047397,31]
[322347355,1712957460205,-500.0,0.00047397,31]
[322347356,1712957460214,-500.0,0.00047397,31]
[322347357,1712957460224,-500.0,0.00047397,31]
[322347358,1712957460233,-500.0,0.00047397,31]
[322347359,1712957460242,-500.0,0.00047397,31]
[322347360,1712957460252,-500.0,0.00047397,31]
[322347361,1712957460262,-500.0,0.00047397,31]
[322347362,1712957460271,-500.0,0.00047397,31]
[322347363,1712957460281,-500.0,0.00047397,31]
[322347364,1712957460292,-500.0,0.00047397,31]
[322347365,1712957460302,-500.0,0.00047397,31]
[322347366,1712957460312,-500.0,0.00047397,31]
[322347367,1712957460321,-500.0,0.00047397,31]
[322347368,1712957460330,-500.0,0.00047397,31]
[322347369,1712957460340,-500.0,0.00047397,31]
[322347370,1712957460350,-500.0,0.00047397,31]
[322347371,1712957460359,-500.0,0.00047397,31]
[322347372,1712957460368,-500.0,0.00047397,31]
[322347373,1712957460378,-500.0,0.00047397,31]
[322347374,1712957460387,-500.0,0.00047397,31]
[322347375,1712957460398,-500.0,0.00047397,31]
[322347376,1712957460407,-487.49,0.00047397,31]
[322347377,1712957460417,-500.0,0.00047397,31]
[322347378,1712957460427,-500.0,0.00047397,31]
[322347379,1712957460436,-500.0,0.00047397,31]
[322347380,1712957460446,-500.0,0.00047397,31]
[322347381,1712957460455,-500.0,0.00047397,31]
[322347382,1712957460464,-500.0,0.00047397,2]
[322347383,1712957460474,-500.0,0.00047397,31]
[322347384,1712957460483,-500.0,0.00047397,31]
[322347385,1712957460493,-500.0,0.00047397,31]
[322347386,1712957460502,-500.0,0.00047397,31]
[322347387,1712957460512,-500.0,0.00047397,31]
[322347388,1712957460521,-500.0,0.00047397,31]
[322347389,1712957460531,-500.0,0.00047397,31]
[322347390,1712957460541,-500.0,0.00047397,31]
[322347391,1712957460551,-500.0,0.00047397,31]
[322347392,1712957460561,-500.0,0.00047397,31]
[322347393,1712957460570,-500.0,0.00047397,31]
[322347394,1712957460580,-500.0,0.00047397,31]
[322347395,1712957460589,-500.0,0.00047397,31]
[322347396,1712957460599,-500.0,0.00047397,31]
[322347397,1712957460609,-500.0,0.00047397,31]
[322347398,1712957460619,-500.0,0.00047397,31]
[322347399,1712957460629,-500.0,0.00047397,31]
[322347400,1712957460638,-500.0,0.00047397,31]
[322347401,1712957460648,-500.0,0.00047397,31]
[322347402,1712957460658,-500.0,0.00047397,31]
[322347403,1712957460669,-500.0,0.00047397,31]
[322347404,1712957460678,-500.0,0.00047397,31]
[322347405,1712957460687,-500.0,0.00047397,31]
[322347406,1712957460697,-500.0,0.00047397,31]
[322347407,1712957460707,-500.0,0.00047397,31]
[322347408,1712957460717,-500.0,0.00047397,31]
[322347409,1712957460726,-500.0,0.00047397,31]
[322347410,1712957460736,-500.0,0.00047397,31]
[322347411,1712957460748,-520.81356723,0.00047397,31]
[322347412,1712957460757,-500.0,0.00047397,31]
[322347413,1712957460767,-500.0,0.00047397,31]
[322347414,1712957460777,-500.0,0.00047397,31]
[322347415,1712957460787,-500.0,0.00047397,31]
[322347416,1712957460798,-500.0,0.00047397,31]
[322347417,1712957460807,-500.0,0.00047397,7]
[322347418,1712957460816,-500.0,0.00047397,31]
[322347419,1712957460826,-500.0,0.00047397,31]
[322347420,1712957460836,-500.0,0.00047397,31]
[322347421,1712957460846,-500.0,0.00047397,31]
[322347422,1712957460856,-500.0,0.00047397,31]
[322347423,1712957460866,-500.0,0.00047397,31]
[322347424,1712957460877,-500.0,0.00047397,31]